bitfinex-derivatives/quotes_BTCF0:USTF0_20250806
["timestamp","ask_amount","ask_price","bid_price","bid_amount"]
[1754495342338,0.4619531,115230.0,115220.0,0.3909886]
[1754495342646,0.4619531,115230.0,115220.0,1.1738067]
[1754495343445,0.4619531,115230.0,115220.0,0.2595386]
[1754495343646,0.84128104,115230.0,115220.0,0.2420261]
[1754495343946,0.4619531,115230.0,115220.0,0.1573861]
[1754495344650,0.4619531,115230.0,115220.0,0.2888361]
[1754495344850,0.4619531,115230.0,115220.0,0.3208061]
[1754495345150,0.4619531,115230.0,115220.0,0.3743861]
[1754495351250,0.4619531,115230.0,115220.0,0.3733861]
[1754495352049,0.4619531,115230.0,115220.0,0.3723861]
[1754495352254,0.4619531,115230.0,115220.0,0.3733861]
[1754495352449,0.84128104,115230.0,115220.0,0.0714461]
[1754495352854,0.84128104,115230.0,115220.0,0.0704461]
[1754495352855,0.4619531,115230.0,115220.0,0.0704461]
[1754495353154,0.4619531,115230.0,115220.0,0.04987]
[1754495353349,0.4155376,115220.0,115210.0,0.3039]
[1754495353556,0.4650476,115220.0,115210.0,0.3039]
[1754495354552,0.4650476,115220.0,115210.0,0.38344762]
[1754495354749,0.4650476,115220.0,115210.0,0.55704032]
[1754495355052,0.4650476,115220.0,115210.0,0.38344762]
[1754495355254,0.4650476,115220.0,115210.0,0.37483118]
[1754495357057,0.4650476,115220.0,115210.0,0.54842378]
[1754495357559,0.4650476,115220.0,115210.0,0.55711833]
[1754495357859,0.4650476,115220.0,115210.0,0.38352573]
[1754495358558,0.2568276,115220.0,115210.0,0.38352573]
[1754495358761,0.3762176,115220.0,115210.0,0.38352573]
[1754495358956,0.4650476,115220.0,115210.0,0.31259455]
[1754495359461,0.4650476,115220.0,115210.0,0.48618715]
[1754495359663,0.4650476,115220.0,115210.0,0.86551509]
[1754495359967,0.4155376,115220.0,115210.0,0.86551509]
[1754495360567,0.4155376,115220.0,115210.0,0.48618715]
[1754495360767,0.4155376,115220.0,115210.0,0.86551509]
[1754495361461,0.4155376,115220.0,115210.0,0.86651509]
[1754495362157,0.4155376,115220.0,115210.0,0.86551509]
[1754495362362,0.4650476,115220.0,115210.0,0.86551509]
[1754495363765,0.4650476,115220.0,115210.0,0.48618715]
[1754495364061,0.4650476,115220.0,115210.0,0.3039]
[1754495364563,0.4650476,115220.0,115210.0,0.37401189]
[1754495367070,1.45329554,115220.0,115210.0,0.07011189]
[1754495367255,1.45329554,115220.0,115210.0,0.04987]
[1754495367863,1.45329554,115220.0,115210.0,0.0869]
[1754495368062,1.45329554,115220.0,115210.0,0.14288]
[1754495368659,1.0739676,115220.0,115210.0,0.3039]
[1754495368867,0.4650476,115220.0,115210.0,0.3039]
[1754495369059,0.4650476,115220.0,115210.0,0.37298427]
[1754495369256,0.4650476,115220.0,115210.0,0.54657547]
[1754495369855,0.4650476,115220.0,115210.0,0.37298427]
[1754495370564,0.4650476,115220.0,115210.0,0.54657527]
[1754495370765,0.4650476,115220.0,115210.0,0.37298427]
[1754495370965,0.4650476,115220.0,115210.0,0.54657527]
[1754495371663,0.4650476,115220.0,115210.0,0.37298427]
[1754495376258,0.84437554,115220.0,115210.0,0.37298427]
[1754495376757,0.4650476,115220.0,115210.0,0.37298427]
[1754495377160,0.4650476,115220.0,115170.0,0.0696]
[1754495377161,0.2170511,115180.0,115170.0,0.0696]
[1754495377361,0.4528811,115180.0,115170.0,0.31973]
[1754495377562,0.2692011,115180.0,115170.0,0.21973]
[1754495377876,0.2692011,115180.0,115170.0,0.60787758]
[1754495378062,0.3462011,115180.0,115170.0,1.21659758]
[1754495378664,0.3462011,115180.0,115170.0,1.22259758]
[1754495378864,0.3462011,115180.0,115170.0,1.29308815]
[1754495379167,0.3462011,115180.0,115170.0,0.91376021]
[1754495379371,0.3462011,115180.0,115170.0,0.99350021]
[1754495380163,0.3462011,115180.0,115170.0,0.99150021]
[1754495380369,0.3826011,115180.0,115170.0,0.99150021]
[1754495382173,0.3826011,115180.0,115170.0,0.98950021]
[1754495382374,0.3826011,115180.0,115170.0,1.16415361]
[1754495382773,0.3826011,115180.0,115170.0,0.55543361]
[1754495383076,0.3826011,115180.0,115170.0,0.38178021]
[1754495383276,0.3826011,115180.0,115170.0,0.37296057]
[1754495383473,0.4212611,115180.0,115170.0,0.37296057]
[1754495383673,0.4212611,115180.0,115170.0,0.54461397]
[1754495383971,0.4212611,115180.0,115170.0,0.54561397]
[1754495385275,0.3848611,115180.0,115170.0,0.54561397]
[1754495385467,0.3462011,115180.0,115170.0,0.54561397]
[1754495385673,0.3462011,115180.0,115170.0,0.55431999]
[1754495386176,0.2170511,115180.0,115170.0,0.93364793]
[1754495386378,0.2604429,115190.0,115180.0,0.4731084]
[1754495386571,0.2170338,115190.0,115180.0,1.46111634]
[1754495386770,0.123628,115190.0,115180.0,1.76111634]
[1754495386972,0.073628,115190.0,115180.0,1.93474834]
[1754495387570,0.073628,115190.0,115180.0,1.76111634]
[1754495387977,0.073628,115190.0,115180.0,1.46111634]
[1754495388577,0.283768,115190.0,115180.0,1.0817884]
[1754495388973,0.154618,115190.0,115180.0,1.0817884]
[1754495389174,0.073628,115190.0,115180.0,1.46211634]
[1754495389376,0.073628,115190.0,115180.0,1.46311634]
[1754495393278,0.283768,115190.0,115180.0,1.46311634]
[1754495393575,0.358428,115190.0,115180.0,0.91015]
[1754495394380,0.358428,115190.0,115180.0,1.0837884]
[1754495395177,0.358428,115190.0,115180.0,1.0827884]
[1754495395980,0.206768,115190.0,115180.0,1.46311634]
[1754495396179,0.154618,115190.0,115180.0,1.46311634]
[1754495396478,0.231618,115190.0,115180.0,1.0827884]
[1754495396680,0.283768,115190.0,115180.0,1.0837884]
[1754495397377,0.358428,115190.0,115180.0,1.0837884]
[1754495399283,0.358428,115190.0,115180.0,0.91015]
[1754495399582,0.358428,115190.0,115180.0,1.0837884]
[1754495400683,0.322428,115190.0,115180.0,1.0837884]
[1754495400885,0.283768,115190.0,115180.0,1.0837884]
[1754495401588,0.154618,115190.0,115180.0,1.0837884]
[1754495401782,0.352588,115190.0,115180.0,1.0837884]
[1754495401984,0.281468,115190.0,115180.0,1.0837884]
[1754495402190,0.153538,115190.0,115180.0,1.0837884]
[1754495402384,0.121918,115190.0,115180.0,1.46311634]
[1754495402581,0.2604245,115200.0,115190.0,0.4701933]
[1754495402787,0.2604245,115200.0,115190.0,0.84952124]
[1754495403080,0.2603989,115210.0,115200.0,0.1777]
[1754495403281,0.2169981,115210.0,115200.0,1.83711408]
[1754495403482,0.2169981,115210.0,115200.0,1.45778614]
[1754495405289,0.4247281,115210.0,115200.0,1.45778614]
[1754495405885,0.4257281,115210.0,115200.0,1.45778614]
[1754495407183,0.84078604,115210.0,115200.0,0.90469]
[1754495407385,0.87617604,115210.0,115200.0,0.85489]
[1754495407896,0.87617604,115210.0,115200.0,0.24677]
[1754495408086,0.87617604,115210.0,115200.0,0.85489]
[1754495408686,0.87617604,115210.0,115200.0,0.90469]
[1754495409291,0.4968481,115210.0,115200.0,1.0782982]
[1754495409488,0.4968481,115210.0,115200.0,0.90469]
[1754495409688,0.4968481,115210.0,115200.0,0.29657]
[1754495409888,0.4968481,115210.0,115200.0,0.90469]
[1754495411397,0.4968481,115210.0,115200.0,1.0782985]
[1754495411798,0.4968481,115210.0,115200.0,1.0782185]
[1754495412691,0.3506481,115210.0,115200.0,1.0782185]
[1754495412896,0.2977981,115210.0,115200.0,1.45754644]
[1754495413098,0.2179981,115210.0,115200.0,1.45754644]
[1754495413499,0.2179981,115210.0,115200.0,1.0782185]
[1754495413700,0.2179981,115210.0,115200.0,1.45754644]
[1754495413998,0.4968481,115210.0,115200.0,1.0782185]
[1754495415495,0.4968481,115210.0,115200.0,0.29657]
[1754495415698,0.3330636,115190.0,115180.0,0.58982493]
[1754495415894,0.83180154,115190.0,115180.0,1.02414983]
[1754495416406,0.4524736,115190.0,115180.0,1.02414983]
[1754495416902,0.4524736,115190.0,115180.0,0.41718983]
[1754495417098,0.4524736,115190.0,115180.0,1.02514983]
[1754495417301,0.4524736,115190.0,115180.0,1.02614983]
[1754495418496,0.4524736,115190.0,115180.0,1.19978853]
[1754495419111,0.4524736,115190.0,115180.0,1.09978853]
[1754495419308,0.3813536,115190.0,115180.0,1.09978853]
[1754495419608,0.3813536,115190.0,115180.0,0.49182853]
[1754495419803,0.1736236,115190.0,115180.0,0.87115647]
[1754495420009,0.1736236,115190.0,115180.0,1.47903647]
[1754495420705,0.1736236,115190.0,115180.0,1.45941664]
[1754495422310,0.2170225,115200.0,115190.0,0.4701936]
[1754495422605,0.2170225,115200.0,115190.0,1.00435176]
[1754495422799,0.2170225,115200.0,115190.0,0.4701936]
[1754495423004,0.2170225,115200.0,115190.0,1.00435176]
[1754495423999,0.2170225,115200.0,115190.0,0.4701936]
[1754495424203,0.3403693,115210.0,115200.0,0.1736086]
[1754495424402,0.1221816,115220.0,115210.0,0.5569394]
[1754495424403,0.1735908,115220.0,115210.0,0.5569394]
[1754495424801,0.2969608,115220.0,115210.0,0.5569394]
[1754495424999,0.4524408,115220.0,115210.0,0.29657]
[1754495425404,0.4524408,115220.0,115210.0,0.4701635]
[1754495426812,0.4524408,115220.0,115210.0,0.47870028]
[1754495427011,0.4544408,115220.0,115210.0,0.47870028]
[1754495429614,0.4544408,115220.0,115210.0,0.29657]
[1754495430313,0.4544408,115220.0,115210.0,0.4701635]
[1754495430514,0.4544408,115220.0,115210.0,0.24677]
[1754495430709,0.4544408,115220.0,115210.0,0.11887]
[1754495431214,0.4544408,115220.0,115210.0,0.24995]
[1754495433818,0.4544408,115220.0,115210.0,0.29876]
[1754495434213,0.4544408,115220.0,115210.0,0.4723535]
[1754495434413,0.1755784,115220.0,115210.0,1.00651166]
[1754495434614,0.002,115220.0,115210.0,1.00651166]
[1754495435117,0.1755785,115220.0,115210.0,1.00651166]
[1754495435516,0.2253785,115220.0,115210.0,0.4723535]
[1754495436316,0.2253785,115220.0,115210.0,1.00651166]
[1754495436516,0.2253785,115220.0,115210.0,1.01512891]
[1754495437417,0.1755785,115220.0,115210.0,1.01512891]
[1754495438215,0.1755785,115220.0,115210.0,0.48097075]
[1754495438417,0.1755785,115220.0,115210.0,1.01512891]
[1754495439121,0.2253785,115220.0,115210.0,1.01512891]
[1754495439319,0.3813285,115220.0,115210.0,1.01512891]
[1754495439623,0.4508785,115220.0,115210.0,1.08996075]
[1754495440024,0.4508785,115220.0,115210.0,0.30031]
[1754495440723,0.4508785,115220.0,115210.0,0.2515]
[1754495441123,0.4508785,115220.0,115210.0,0.30031]
[1754495441317,0.4508785,115220.0,115210.0,0.4739035]
[1754495442727,0.4508785,115220.0,115210.0,0.48267537]
[1754495442915,0.3083985,115220.0,115210.0,0.48267537]
[1754495443223,0.4508785,115220.0,115210.0,1.09003537]
[1754495445926,0.4508785,115220.0,115210.0,1.15903636]
[1754495446624,0.4508785,115220.0,115210.0,0.97667099]
[1754495446929,0.4508785,115220.0,115210.0,1.15878128]
[1754495448624,0.4508785,115220.0,115210.0,1.53858149]
[1754495450325,0.4508785,115220.0,115210.0,1.15878128]
[1754495450824,0.4508785,115220.0,115210.0,1.15026449]
[1754495452024,0.4508785,115220.0,115210.0,0.97667099]
[1754495452324,0.4508785,115220.0,115210.0,1.15026449]
[1754495455726,0.4508785,115220.0,115210.0,1.15909659]
[1754495459625,0.1755785,115220.0,115210.0,1.15909659]
[1754495460028,0.3762185,115220.0,115210.0,1.5388968]
[1754495461327,0.1755784,115220.0,115210.0,1.5388968]
[1754495462723,0.002,115220.0,115210.0,1.5388968]
[1754495463028,0.2169679,115230.0,115220.0,0.2879585]
[1754495463331,0.2169679,115230.0,115220.0,0.84145871]
[1754495464521,0.3037307,115240.0,115230.0,0.4059834]
[1754495464727,0.3037307,115240.0,115230.0,1.44840361]
[1754495466023,0.3533807,115240.0,115230.0,1.44840361]
[1754495466925,0.3533807,115240.0,115230.0,1.0686034]
[1754495467130,0.3533807,115240.0,115230.0,1.44840361]
[1754495467328,0.4553707,115240.0,115230.0,1.44840361]
[1754495468533,0.5027107,115240.0,115230.0,1.44840361]
[1754495469832,0.5358507,115240.0,115230.0,1.44840361]
[1754495473238,0.5027107,115240.0,115230.0,1.44840361]
[1754495473841,0.5027107,115240.0,115230.0,1.27484021]
[1754495474136,0.5358507,115240.0,115230.0,1.27484021]
[1754495474538,0.5358507,115240.0,115230.0,1.44840351]
[1754495474732,0.4593205,115240.0,115230.0,1.44840351]
[1754495474939,0.1745482,115240.0,115230.0,1.44840351]
[1754495475135,0.3037017,115250.0,115240.0,0.2209582]
[1754495475336,0.2603152,115250.0,115240.0,1.22122862]
[1754495476741,0.2603152,115250.0,115240.0,1.24063669]
[1754495476940,0.2603152,115250.0,115240.0,1.24163669]
[1754495477332,0.2603152,115250.0,115240.0,0.86183648]
[1754495477735,0.2169294,115250.0,115240.0,0.86183648]
[1754495478839,0.2169294,115250.0,115240.0,1.24163669]
[1754495479239,0.2169294,115250.0,115240.0,0.86183648]
[1754495480041,0.2169294,115250.0,115240.0,0.74360648]
[1754495480241,0.2169294,115250.0,115240.0,0.86183648]
[1754495481940,0.2169294,115250.0,115240.0,0.76982648]
[1754495482241,0.2169294,115250.0,115240.0,0.86183648]
[1754495488744,0.2169294,115250.0,115240.0,1.24163669]
[1754495490248,0.2661794,115250.0,115240.0,0.86183648]
[1754495490848,0.3366594,115250.0,115240.0,0.86183648]
[1754495491244,0.3669994,115250.0,115240.0,0.86183648]
[1754495491645,0.4154994,115250.0,115240.0,0.86183648]
[1754495494351,0.4154994,115250.0,115240.0,0.86283648]
[1754495495552,0.4154994,115250.0,115240.0,0.86383648]
[1754495495751,0.4848094,115250.0,115240.0,0.13678807]
[1754495496055,0.4848094,115250.0,115240.0,0.05775807]
[1754495496646,0.4848094,115250.0,115240.0,0.10907807]
[1754495496845,0.4848094,115250.0,115240.0,0.10707807]
[1754495497360,0.4848094,115250.0,115240.0,0.28062637]
[1754495497545,0.4848094,115250.0,115240.0,0.35515637]
[1754495497747,0.4848094,115250.0,115240.0,0.86025658]
[1754495498048,0.2472694,115250.0,115240.0,0.86025658]
[1754495498256,0.2169294,115250.0,115240.0,1.34005679]
[1754495498555,0.2169294,115250.0,115240.0,0.96025658]
[1754495498748,0.3450194,115250.0,115240.0,0.96025658]
[1754495498950,0.4848094,115250.0,115240.0,0.96025658]
[1754495500053,0.4848094,115250.0,115240.0,0.96125658]
[1754495500258,0.4154994,115250.0,115240.0,0.96225658]
[1754495500449,0.4154994,115250.0,115240.0,0.96125658]
[1754495500748,0.4154994,115250.0,115240.0,0.96225658]
[1754495501262,0.4154994,115250.0,115240.0,0.58245637]
[1754495501461,0.4848094,115250.0,115240.0,0.96225658]
[1754495501754,0.4848094,115250.0,115240.0,0.58245637]
[1754495501954,0.4848094,115250.0,115240.0,1.56833658]
[1754495511466,0.1735455,115250.0,115240.0,1.56833658]
[1754495511669,0.5022453,115260.0,115250.0,0.4600733]
[1754495511860,0.5022453,115260.0,115250.0,0.83987351]
[1754495512356,0.5715553,115260.0,115250.0,0.83987351]
[1754495517470,0.5022453,115260.0,115250.0,0.83987351]
[1754495519669,0.4588627,115260.0,115250.0,0.83987351]
[1754495520464,0.2169109,115260.0,115250.0,0.83987351]
[1754495520671,0.2602657,115270.0,115260.0,0.1735179]
[1754495520973,0.2602657,115270.0,115260.0,1.0631879]
[1754495521171,0.3074657,115270.0,115260.0,1.44298811]
[1754495521466,0.4070357,115270.0,115260.0,1.44298811]
[1754495521671,0.4531157,115270.0,115260.0,1.44298811]
[1754495522171,0.19285,115270.0,115260.0,1.44298811]
[1754495522368,0.2972828,115270.0,115260.0,1.44298811]
[1754495522569,0.3663528,115270.0,115260.0,1.44298811]
[1754495522873,0.3663528,115270.0,115260.0,1.0631879]
[1754495523072,0.2512028,115270.0,115260.0,1.44298811]
[1754495523273,0.4274018,115280.0,115270.0,0.4574129]
[1754495523469,0.3406527,115280.0,115270.0,0.83721311]
[1754495523672,0.2512005,115280.0,115270.0,0.83721311]
[1754495523873,0.1735005,115280.0,115270.0,0.84580898]
[1754495524376,0.2207005,115280.0,115270.0,0.84580898]
[1754495524771,0.22801,115290.0,115280.0,0.2857978]
[1754495524972,0.22801,115290.0,115280.0,1.44283801]
[1754495524973,0.3663228,115290.0,115280.0,1.44283801]
[1754495525176,0.3663228,115290.0,115280.0,1.46246515]
[1754495525372,0.4320328,115290.0,115280.0,1.28897735]
[1754495525672,0.4320328,115290.0,115280.0,1.46246525]
[1754495526176,0.4320328,115290.0,115280.0,0.68333735]
[1754495526377,0.4320328,115290.0,115280.0,1.46246525]
[1754495527377,0.3663228,115290.0,115280.0,1.46246525]
[1754495528179,0.3968728,115290.0,115280.0,1.08266504]
[1754495528381,0.4320328,115290.0,115280.0,1.46246525]
[1754495529576,0.4320328,115290.0,115280.0,1.28897735]
[1754495530078,0.4320328,115290.0,115280.0,0.68333735]
[1754495530285,0.4320328,115290.0,115280.0,0.25512714]
[1754495530872,0.4320328,115290.0,115280.0,0.30353714]
[1754495531077,0.4320328,115290.0,115280.0,0.47702504]
[1754495531278,0.4320328,115290.0,115280.0,0.85682525]
[1754495531979,0.1734728,115290.0,115280.0,0.85682525]
[1754495532178,0.2206728,115290.0,115280.0,0.85682525]
[1754495532579,0.3663228,115290.0,115280.0,0.85682525]
[1754495534181,0.2972528,115290.0,115280.0,0.85682525]
[1754495534782,0.3663228,115290.0,115280.0,0.85682525]
[1754495535689,0.4320328,115290.0,115280.0,0.85682525]
[1754495537694,0.3663228,115290.0,115280.0,0.85682525]
[1754495538484,0.3968728,115290.0,115280.0,0.4573979]
[1754495538684,0.3968728,115290.0,115280.0,0.83719811]
[1754495539493,0.3663228,115290.0,115280.0,0.83719811]
[1754495539990,0.3956828,115290.0,115280.0,0.83719811]
[1754495540196,0.4530511,115300.0,115290.0,0.4573832]
[1754495540386,0.4058511,115300.0,115290.0,1.44250341]
[1754495540587,0.4530511,115300.0,115290.0,1.44250341]
[1754495541597,0.4824111,115300.0,115290.0,1.44250341]
[1754495541793,0.5175711,115300.0,115290.0,1.44250341]
[1754495542493,0.2906785,115310.0,115300.0,0.1734581]
[1754495542791,0.4530285,115310.0,115300.0,0.83716831]
[1754495543098,0.5175485,115310.0,115300.0,0.4573681]
[1754495543399,0.5175485,115310.0,115300.0,0.83716831]
[1754495545298,0.5175485,115310.0,115300.0,0.4573681]
[1754495545499,0.5175485,115310.0,115300.0,0.83716831]
[1754495546400,0.5175485,115310.0,115300.0,0.4573681]
[1754495546702,0.5175485,115310.0,115300.0,0.83716831]
[1754495546903,0.4530285,115310.0,115300.0,0.83716831]
[1754495547103,0.5175485,115310.0,115300.0,0.83716831]
[1754495547998,0.2039536,115310.0,115300.0,0.85658261]
[1754495548599,0.1734536,115310.0,115300.0,0.85658261]
[1754495549405,0.2897236,115310.0,115300.0,0.4767824]
[1754495549603,0.3663036,115310.0,115300.0,0.85658261]
[1754495550309,0.1734536,115310.0,115300.0,0.85658261]
[1754495551799,0.2211036,115310.0,115300.0,0.85658261]
[1754495552004,0.3687836,115310.0,115300.0,0.4767824]
[1754495552198,0.4306636,115310.0,115300.0,0.85658261]
[1754495552498,0.3687836,115310.0,115300.0,0.85658261]
[1754495552697,0.3687836,115310.0,115300.0,1.46162261]
[1754495553001,0.3687836,115310.0,115300.0,0.85658261]
[1754495553204,0.2993436,115310.0,115300.0,1.46162261]
[1754495553608,0.3687836,115310.0,115300.0,1.46162261]
[1754495555414,0.4306636,115310.0,115300.0,1.46162261]
[1754495556113,0.4306636,115310.0,115300.0,0.85658261]
[1754495556314,0.4306636,115310.0,115300.0,1.46158261]
[1754495556913,0.4306636,115310.0,115300.0,1.0817824]
[1754495557115,0.4306636,115310.0,115300.0,1.46158261]
[1754495557713,0.4306636,115310.0,115300.0,1.46154261]
[1754495559018,0.4306636,115310.0,115300.0,1.0817424]
[1754495559206,0.4306636,115310.0,115300.0,1.46154261]
[1754495561322,0.3687836,115310.0,115300.0,1.46154261]
[1754495561524,0.2993436,115310.0,115300.0,1.46154261]
[1754495563127,0.3687836,115310.0,115300.0,1.46154261]
[1754495564820,0.2530436,115310.0,115300.0,1.46154261]
[1754495565128,0.1734536,115310.0,115300.0,1.46154261]
[1754495565721,0.2211036,115310.0,115300.0,1.46154261]
[1754495566821,0.1734536,115310.0,115300.0,1.46154261]
[1754495569430,0.2211036,115310.0,115300.0,1.46154261]
[1754495569729,0.4149602,115320.0,115310.0,0.4486529]
[1754495570032,0.5607302,115320.0,115310.0,0.82845311]
[1754495570526,0.5173701,115320.0,115310.0,0.82845311]
[1754495571522,0.5173701,115320.0,115310.0,0.83734986]
[1754495572121,0.5173701,115320.0,115310.0,0.45754965]
[1754495572728,0.5173701,115320.0,115310.0,0.83734986]
[1754495573123,0.5173701,115320.0,115310.0,0.45754965]
[1754495573323,0.5173701,115320.0,115310.0,0.83734986]
[1754495576430,0.5173701,115320.0,115310.0,0.45754965]
[1754495579729,0.5173701,115320.0,115310.0,0.83734986]
[1754495579928,0.5173701,115320.0,115310.0,0.45754965]
[1754495580128,0.5173701,115320.0,115310.0,0.83734986]
[1754495581428,0.5173701,115320.0,115310.0,0.66390696]
[1754495581633,0.5173701,115320.0,115310.0,0.83734986]
[1754495583634,0.5173701,115320.0,115310.0,0.66390696]
[1754495583833,0.5173701,115320.0,115310.0,0.83734996]
[1754495585932,0.3384001,115320.0,115310.0,0.83734996]
[1754495586129,0.2408966,115330.0,115310.0,0.83734996]
[1754495586333,0.4915927,115330.0,115320.0,1.42726811]
[1754495586737,0.5516127,115330.0,115320.0,1.42726811]
[1754495588233,0.3034927,115330.0,115320.0,1.42726811]
[1754495588434,0.4259127,115330.0,115320.0,1.42726811]
[1754495588634,0.4915927,115330.0,115320.0,1.42726811]
[1754495588833,0.5184227,115330.0,115320.0,1.42726811]
[1754495589733,0.5516127,115330.0,115320.0,1.42726811]
[1754495590742,0.5516127,115330.0,115320.0,1.25384021]
[1754495591843,0.5516127,115330.0,115320.0,1.42726811]
[1754495592038,0.5516127,115330.0,115320.0,1.25384021]
[1754495592539,0.5516127,115330.0,115320.0,1.42726811]
[1754495594640,0.5247827,115330.0,115320.0,0.87404]
[1754495594842,0.5516127,115330.0,115320.0,0.87404]
[1754495595648,0.5516127,115330.0,115320.0,0.76017]
[1754495595846,0.5516127,115330.0,115320.0,0.83078]
[1754495596040,0.5516127,115330.0,115320.0,0.87404]
[1754495597446,0.5516127,115330.0,115320.0,1.0474679]
[1754495598642,0.5516127,115330.0,115320.0,1.42726811]
[1754495598643,0.5247827,115330.0,115320.0,1.42726811]
[1754495599046,0.5247827,115330.0,115320.0,1.44688849]
[1754495599246,0.5247827,115330.0,115320.0,1.06708828]
[1754495599552,0.1734261,115330.0,115320.0,1.44688849]
[1754495599956,0.1733977,115340.0,115330.0,0.572946]
[1754495600150,0.3485871,115350.0,115340.0,0.4428777]
[1754495600350,0.4452571,115350.0,115340.0,1.45018525]
[1754495600546,0.2824206,115350.0,115340.0,1.45018525]
[1754495600752,0.2167406,115350.0,115340.0,1.45018525]
[1754495601756,0.1733827,115350.0,115340.0,0.99321164]
[1754495602054,0.4215027,115350.0,115340.0,1.49352485]
[1754495602449,0.3946727,115350.0,115340.0,1.49352485]
[1754495603356,0.1733827,115350.0,115340.0,1.49352485]
[1754495603957,0.2185327,115350.0,115340.0,1.49352485]
[1754495604158,0.3614827,115350.0,115340.0,1.49352485]
[1754495605959,0.3614827,115350.0,115340.0,1.27678755]
[1754495606151,0.4215027,115350.0,115340.0,1.45018535]
[1754495606958,0.4215027,115350.0,115340.0,1.07038514]
[1754495607158,0.4215027,115350.0,115340.0,1.45018535]
[1754495607350,0.4215027,115350.0,115340.0,0.28878734]
[1754495607556,0.80130291,115350.0,115340.0,0.66049734]
[1754495607756,0.4215027,115350.0,115340.0,0.03291]
[1754495607962,0.3946727,115350.0,115340.0,0.82267811]
[1754495608153,0.3614827,115350.0,115340.0,0.82267811]
[1754495608553,0.4215027,115350.0,115340.0,0.64928021]
[1754495608756,0.4215027,115350.0,115340.0,0.26948]
[1754495608960,0.4215027,115350.0,115340.0,0.64928021]
[1754495609161,0.4215027,115350.0,115340.0,0.26948]
[1754495609362,0.4215027,115350.0,115340.0,0.87792]
[1754495609860,0.4215027,115350.0,115340.0,1.0513179]
[1754495610163,0.4215027,115350.0,115340.0,0.4428779]
[1754495610366,0.4215027,115350.0,115340.0,1.43111811]
[1754495611467,0.4215027,115350.0,115340.0,1.25772021]
[1754495611866,0.4215027,115350.0,115340.0,1.0513179]
[1754495612463,0.4215027,115350.0,115340.0,1.4501717]
[1754495613161,0.1733827,115350.0,115340.0,1.4501717]
[1754495613874,0.2163927,115350.0,115340.0,1.4500117]
[1754495614167,0.2163927,115350.0,115340.0,0.8417317]
[1754495614465,0.1733827,115350.0,115340.0,1.4499317]
[1754495615162,0.1733827,115350.0,115340.0,0.8417317]
[1754495615363,0.4873698,115360.0,115350.0,0.2016228]
[1754495615560,0.4873698,115360.0,115350.0,0.81578301]
[1754495615761,0.4873698,115360.0,115350.0,1.42370301]
[1754495615960,0.4189998,115360.0,115350.0,1.0439028]
[1754495616161,0.4873698,115360.0,115350.0,1.42370301]
[1754495616566,0.4873698,115360.0,115350.0,1.0439028]
[1754495616765,0.4873698,115360.0,115350.0,0.81578301]
[1754495616967,0.4873698,115360.0,115350.0,1.0438228]
[1754495617266,0.4873698,115360.0,115350.0,1.42362301]
[1754495617476,0.2167204,115360.0,115350.0,1.42362301]
[1754495617768,0.2597304,115360.0,115350.0,1.42362301]
[1754495618255,0.3567804,115360.0,115350.0,1.42362301]
[1754495618460,0.4006804,115360.0,115350.0,1.42362301]
[1754495619771,0.2167204,115360.0,115350.0,1.42362301]
[1754495620470,0.1733782,115360.0,115350.0,1.42362301]
[1754495620966,0.2600426,115370.0,115360.0,0.3926178]
[1754495621269,0.2167022,115370.0,115360.0,0.81576801]
[1754495622370,0.2167022,115370.0,115360.0,0.82447953]
[1754495623870,0.2163736,115370.0,115360.0,0.82447953]
[1754495624072,0.3134236,115370.0,115360.0,0.82447953]
[1754495624870,0.3202636,115370.0,115360.0,0.27131152]
[1754495625168,0.4134736,115370.0,115360.0,1.05159932]
[1754495625661,0.4134736,115370.0,115360.0,1.43139953]
[1754495625858,0.4134736,115370.0,115360.0,1.05159932]
[1754495626063,0.4134736,115370.0,115360.0,1.43139953]
[1754495626263,0.3886336,115370.0,115360.0,1.43139953]
[1754495626564,0.3573236,115370.0,115360.0,1.43139953]
[1754495627673,0.3573236,115370.0,115360.0,1.05159932]
[1754495627876,0.3573236,115370.0,115360.0,1.43139953]
[1754495628176,0.2847436,115370.0,115360.0,1.43139953]
[1754495628377,0.3573236,115370.0,115360.0,1.43139953]
[1754495628672,0.3821636,115370.0,115360.0,1.43139953]
[1754495629272,0.4134736,115370.0,115360.0,1.43139953]
[1754495630780,0.1733528,115370.0,115360.0,1.56141823]
[1754495631175,0.4873201,115380.0,115370.0,0.2788728]
[1754495631483,0.5434701,115380.0,115370.0,0.2626]
[1754495631669,0.5434701,115380.0,115370.0,0.4359528]
[1754495631869,0.5434701,115380.0,115370.0,0.2626]
[1754495632677,0.5434701,115380.0,115370.0,0.4359528]
[1754495632871,0.3033601,115380.0,115370.0,0.81575301]
[1754495633177,0.5434701,115380.0,115370.0,0.81575301]
[1754495633378,0.5434701,115380.0,115370.0,0.4359528]
[1754495635178,0.5434701,115380.0,115370.0,0.2626]
[1754495635578,0.3886228,115370.0,115360.0,1.36920513]
[1754495635778,0.4134628,115370.0,115360.0,1.36920513]
[1754495637786,0.4134628,115370.0,115360.0,1.43844924]
[1754495638278,0.2163628,115370.0,115360.0,1.43844924]
[1754495638481,0.1733528,115370.0,115360.0,1.43844924]
[1754495640080,0.4395793,115380.0,115360.0,1.30843374]
[1754495640282,0.4146493,115380.0,115370.0,0.81176271]
[1754495640682,0.4817293,115380.0,115370.0,0.4319625]
[1754495640888,0.5368193,115380.0,115370.0,0.25861]
[1754495641382,0.5368193,115380.0,115370.0,0.4319625]
[1754495641585,0.5368193,115380.0,115370.0,0.25861]
[1754495641782,0.5368193,115380.0,115370.0,0.4319628]
[1754495642890,0.5368193,115380.0,115370.0,0.25861]
[1754495643390,0.5368193,115380.0,115370.0,0.4319628]
[1754495644692,0.5368193,115380.0,115370.0,0.81176301]
[1754495645688,0.5368193,115380.0,115370.0,0.25861]
[1754495646983,0.5368193,115380.0,115370.0,0.4319628]
[1754495647793,0.5368193,115380.0,115370.0,0.25861]
[1754495648489,0.5368193,115380.0,115370.0,0.82424]
[1754495648793,0.5368193,115380.0,115370.0,0.86585]
[1754495648987,0.5368193,115380.0,115370.0,1.0392028]
[1754495649392,0.5368193,115380.0,115370.0,1.41900301]
[1754495649690,0.4934822,115380.0,115370.0,1.41900301]
[1754495649997,0.4501455,115380.0,115370.0,1.41900301]
[1754495652496,0.4501455,115380.0,115370.0,1.0392028]
[1754495652694,0.4501455,115380.0,115370.0,1.41900301]
[1754495654199,0.3950555,115380.0,115370.0,1.41900301]
[1754495654694,0.4501455,115380.0,115370.0,1.41900301]
[1754495656594,0.4501455,115380.0,115370.0,1.0392028]
[1754495656800,0.4501455,115380.0,115370.0,1.41900301]
[1754495662600,0.4501455,115380.0,115370.0,1.0392028]
[1754495663001,0.4501455,115380.0,115370.0,0.86585]
[1754495663905,0.4501455,115380.0,115370.0,1.0392028]
[1754495664106,0.4501455,115380.0,115370.0,0.86585]
[1754495664605,0.4501455,115380.0,115370.0,1.0392027]
[1754495665401,0.4501455,115380.0,115370.0,0.86585]
[1754495666404,0.4501455,115380.0,115370.0,0.21912]